bitfinex/quotes_SOLUSD_20250616
["timestamp","ask_amount","ask_price","bid_price","bid_amount"]
[1750047935253,26.0,156.66,156.59,4.71389423]
[1750047935254,4.71389423,156.64,156.59,4.71389423]
[1750047935971,4.71389423,156.65,156.6,4.71389423]
[1750047936464,4.71389423,156.64,156.59,4.71389423]
[1750047936973,7.6856841,156.64,156.58,32.6856841]
[1750047937164,7.6856841,156.63,156.58,32.6856841]
[1750047939260,26.0,156.66,156.58,25.0]
[1750047939462,7.6856841,156.63,156.58,25.0]
[1750047939664,33.6856841,156.63,156.58,25.0]
[1750047939984,33.6856841,156.63,156.58,32.6856841]
[1750047940569,26.0,156.63,156.59,7.6856841]
[1750047941389,26.0,156.63,156.58,25.0]
[1750047941885,33.6856841,156.63,156.58,25.0]
[1750047942179,26.0,156.63,156.58,25.0]
[1750047942362,7.6856841,156.62,156.58,25.0]
[1750047942703,7.6856841,156.59,156.58,25.0]
[1750047942859,33.6856841,156.6,156.58,25.0]
[1750047943285,7.6856841,156.59,156.58,25.0]
[1750047943668,7.6856841,156.6,156.58,25.0]
[1750047947690,1.5749,156.63,156.58,25.0]
[1750047947876,9.2605841,156.63,156.58,32.6856841]
[1750047948080,7.6856841,156.65,156.6,7.6856841]
[1750047948278,7.6856841,156.65,156.58,31.38633958]
[1750047948482,33.6856841,156.65,156.58,31.38633958]
[1750047948683,7.6856841,156.64,156.58,31.38633958]
[1750047949401,26.0,156.65,156.58,31.38633958]
[1750047949402,7.6856841,156.63,156.58,32.6856841]
[1750047949597,26.0,156.64,156.58,25.0]
[1750047949902,7.6856841,156.62,156.58,25.0]
[1750047950203,7.6856841,156.62,156.57,34.3256841]
[1750047950895,7.6856841,156.63,156.57,26.64]
[1750047951097,7.6856841,156.63,156.58,7.6856841]
[1750047953385,26.0,156.64,156.58,7.6856841]
[1750047953703,26.0,156.64,156.6,7.6856841]
[1750047954004,33.6856841,156.64,156.59,7.6856841]
[1750047954702,6.02,156.67,156.58,18.79181043]
[1750047954999,6.02,156.67,156.64,7.6856841]
[1750047955209,6.02,156.67,156.62,0.14216157]
[1750047955502,33.6856841,156.64,156.58,0.14216157]
[1750047955677,33.6856841,156.64,156.59,7.6856841]
[1750047956098,26.0,156.64,156.6,7.6856841]
[1750047956909,26.0,156.64,156.6,4.7155556]
[1750047957799,30.7155556,156.64,156.59,4.7155556]
[1750047958301,4.7155556,156.63,156.58,4.7155556]
[1750047959805,30.7155556,156.64,156.58,4.7155556]
[1750047960700,4.7155556,156.63,156.58,4.7155556]
[1750047961274,4.7155556,156.63,156.57,0.14216157]
[1750047961585,4.7155556,156.63,156.57,4.7155556]
[1750047962221,4.7155556,156.63,156.58,4.7155556]
[1750047964482,4.7155556,156.62,156.57,4.7155556]
[1750047964684,4.7155556,156.62,156.57,0.14216157]
[1750047964885,26.0,156.64,156.56,4.7155556]
[1750047965101,4.7155556,156.62,156.57,4.7155556]
[1750047969230,30.7155556,156.64,156.58,4.7155556]
[1750047969406,26.0,156.64,156.6,4.7155556]
[1750047969787,26.0,156.64,156.59,4.85771717]
[1750047970896,4.7155556,156.61,156.57,89.2]
[1750047971795,30.7155556,156.61,156.56,4.7155556]
[1750047971999,30.7155556,156.6,156.54,4.7155556]
[1750047972302,26.0,156.6,156.58,4.7155556]
[1750047972521,26.0,156.6,156.56,4.7155556]
[1750047972905,26.0,156.6,156.55,0.14216157]
[1750047973213,26.0,156.6,156.55,4.85771717]
[1750047973399,26.0,156.6,156.56,4.7155556]
[1750047974802,4.7155556,156.61,156.55,0.14216157]
[1750047974803,26.0,156.61,156.57,4.7155556]
[1750047975003,10.5955556,156.64,156.59,4.7155556]
[1750047975298,26.0,156.63,156.59,4.7155556]
[1750047975905,30.7155556,156.63,156.58,4.7155556]
[1750047976601,26.0,156.63,156.59,4.7155556]
[1750047977201,30.7155556,156.63,156.58,4.85771717]
[1750047979519,5.88,156.64,156.62,4.7155556]
[1750047979821,5.88,156.64,156.61,4.7155556]
[1750047980203,5.88,156.64,156.62,4.7155556]
[1750047980407,5.88,156.64,156.63,4.7155556]
[1750047980922,35.4931698,156.69,156.63,4.7155556]
[1750047981138,9.4931698,156.69,156.64,4.7155556]
[1750047981428,18.53831475,156.7,156.66,4.7155556]
[1750047981728,39.76070055,156.7,156.66,4.7155556]
[1750047981892,4.7776142,156.69,156.66,4.7155556]
[1750047982504,39.76070055,156.7,156.66,4.7155556]
[1750047983495,44.47625615,156.7,156.64,4.85771717]
[1750047983696,9.48958257,156.69,156.64,4.7155556]
[1750047984024,4.77402697,156.69,156.64,4.7155556]
[1750047985115,4.77402697,156.69,156.65,4.7155556]
[1750047985508,44.47625615,156.7,156.65,4.7155556]
[1750047985740,39.76070055,156.7,156.66,4.7155556]
[1750047986442,44.47625615,156.7,156.65,4.7155556]
[1750047987707,39.76070055,156.7,156.65,4.7155556]
[1750047987909,44.47625615,156.7,156.65,4.7155556]
[1750047990912,39.76070055,156.7,156.65,4.7155556]
[1750047991129,39.76070055,156.7,156.66,4.7155556]
[1750047991323,12.18770055,156.7,156.67,4.7155556]
[1750047991527,12.18770055,156.7,156.65,6.52574284]
[1750047991832,12.18770055,156.7,156.67,4.7155556]
[1750047992917,12.18770055,156.7,156.68,4.7155556]
[1750047993731,12.18770055,156.7,156.67,18.79181043]
[1750047994117,12.18770055,156.7,156.68,4.7155556]
[1750047994306,12.18770055,156.7,156.67,18.79181043]
[1750047994511,12.18770055,156.7,156.68,4.7155556]
[1750047995313,12.18770055,156.7,156.67,25.17464937]
[1750047995513,12.18770055,156.7,156.68,4.7155556]
[1750047996547,5.88,156.71,156.69,4.7155556]
[1750047998221,4.7155556,156.76,156.7,4.7155556]
[1750047998550,4.7155556,156.77,156.71,4.7155556]
[1750047998725,4.7155556,156.77,156.72,4.7155556]
[1750047999140,4.7155556,156.77,156.71,0.14216157]
[1750047999326,30.7155556,156.76,156.71,4.85771717]
[1750047999853,26.0,156.76,156.71,4.85771717]
[1750048000520,4.7155556,156.77,156.72,4.7155556]
[1750048000754,27.5759,156.78,156.73,4.85771717]
[1750048000953,32.2914556,156.78,156.73,4.85771717]
[1750048002453,32.2914556,156.78,156.73,0.14216157]
[1750048002656,4.7155556,156.77,156.73,0.14216157]
[1750048002823,32.2914556,156.78,156.73,4.85771717]
[1750048003332,4.7155556,156.74,156.69,4.7155556]
[1750048003557,4.7155556,156.73,156.68,4.7155556]
[1750048004833,4.7155556,156.71,156.63,6.5628]
[1750048005035,4.7155556,156.69,156.63,4.7155556]
[1750048005239,4.7155556,156.69,156.64,4.7155556]
[1750048006450,4.7155556,156.69,156.64,0.14216157]
[1750048006672,4.7155556,156.69,156.64,4.85771717]
[1750048009044,4.7155556,156.69,156.63,4.7155556]
[1750048009247,4.7155556,156.68,156.63,4.7155556]
[1750048009561,4.7155556,156.69,156.64,4.7155556]
[1750048012467,4.7155556,156.69,156.63,0.14216157]
[1750048012660,4.7155556,156.69,156.64,4.7155556]
[1750048013437,4.7155556,156.7,156.63,0.14216157]
[1750048013661,4.7155556,156.69,156.65,4.7155556]
[1750048013859,4.7155556,156.68,156.63,4.85771717]
[1750048014572,4.7155556,156.68,156.63,4.7155556]
[1750048014740,4.7155556,156.66,156.62,26.4]
[1750048015246,4.7155556,156.67,156.62,4.7155556]
[1750048015446,26.0,156.68,156.65,4.7155556]
[1750048015655,30.7155556,156.7,156.65,4.7155556]
[1750048015853,4.7155556,156.69,156.64,4.7155556]
[1750048016648,4.7155556,156.68,156.64,4.7155556]
[1750048017558,4.7155556,156.69,156.64,4.7155556]
[1750048019046,26.0,156.7,156.65,4.7155556]
[1750048019245,30.7155556,156.7,156.65,4.7155556]
[1750048020573,4.7155556,156.69,156.64,4.7155556]
[1750048021483,26.0,156.7,156.64,4.7155556]
[1750048021688,4.7155556,156.69,156.64,4.7155556]
[1750048022050,30.7155556,156.7,156.65,4.7155556]
[1750048024273,26.0,156.7,156.64,4.7155556]
[1750048025478,26.0,156.68,156.63,4.7155556]
[1750048026479,4.7155556,156.69,156.64,4.7155556]
[1750048026658,26.0,156.68,156.64,4.7155556]
[1750048027177,26.0,156.68,156.63,4.7155556]
[1750048027382,4.7155556,156.66,156.61,26.48216157]
[1750048027556,26.0,156.68,156.62,4.7155556]
[1750048027557,4.7155556,156.67,156.62,4.7155556]
[1750048028062,30.7155556,156.68,156.63,4.7155556]
[1750048028259,30.7155556,156.68,156.61,26.48216157]
[1750048028260,4.7155556,156.7,156.64,4.7155556]
[1750048028484,4.7155556,156.7,156.65,4.7155556]
[1750048028485,30.7155556,156.7,156.65,4.7155556]
[1750048028650,4.7155556,156.69,156.64,4.7155556]
[1750048028855,30.7155556,156.68,156.63,4.85771717]
[1750048029553,26.0,156.68,156.64,4.7155556]
[1750048030068,26.0,156.68,156.63,0.14216157]
[1750048030268,26.0,156.68,156.64,4.7155556]
[1750048031783,7.3222,156.71,156.63,6.52655702]
[1750048031784,30.7155556,156.7,156.65,4.7155556]
[1750048032770,26.0,156.7,156.65,4.7155556]
[1750048032976,30.7155556,156.7,156.63,6.52655702]
[1750048033174,30.7155556,156.7,156.65,4.7155556]
[1750048033761,30.7155556,156.7,156.63,6.52655702]
[1750048033980,30.7155556,156.7,156.65,4.7155556]
[1750048034395,26.0,156.7,156.66,4.7155556]
[1750048034989,30.7155556,156.7,156.65,4.7155556]
[1750048038889,4.7155556,156.68,156.63,4.7155556]
[1750048039669,26.0,156.68,156.64,4.7155556]
[1750048040270,26.0,156.68,156.65,4.7155556]
[1750048040987,26.0,156.68,156.64,4.7155556]
[1750048043872,26.0,156.68,156.63,0.14216157]
[1750048044073,26.0,156.68,156.63,4.85771717]
[1750048044282,26.0,156.68,156.64,4.7155556]
[1750048045779,26.0,156.68,156.63,0.14216157]
[1750048045978,26.0,156.68,156.63,4.7155556]
[1750048047791,30.7155556,156.68,156.63,4.7155556]
[1750048048590,35.48708956,156.68,156.63,4.7155556]
[1750048048883,4.77153396,156.67,156.63,4.7155556]
[1750048049320,4.77153396,156.67,156.59,18.79181043]
[1750048049321,26.0,156.66,156.59,18.79181043]
[1750048049594,4.7155556,156.64,156.59,4.7155556]
[1750048049778,4.7155556,156.63,156.59,4.7155556]
[1750048050697,9.48708956,156.64,156.58,26.28]
[1750048050991,4.7155556,156.62,156.54,12.48911709]
[1750048051297,4.7155556,156.62,156.57,4.7155556]
[1750048052371,7.52287643,156.66,156.56,4.7155556]
[1750048052372,4.7155556,156.61,156.56,4.7155556]
[1750048053000,4.7155556,156.59,156.54,4.7155556]
[1750048053198,26.0,156.61,156.57,4.7155556]
[1750048053879,10.4555556,156.62,156.58,4.7155556]
[1750048053880,31.74,156.62,156.58,4.7155556]
[1750048054087,1.6481,156.66,156.61,4.7155556]
[1750048054279,1.6481,156.66,156.63,4.7155556]
[1750048055073,5.74,156.68,156.64,4.7155556]
[1750048055721,31.74,156.68,156.64,4.7155556]
[1750048056217,5.74,156.68,156.65,4.7155556]
[1750048056415,5.74,156.68,156.66,4.7155556]
[1750048056601,5.74,156.68,156.67,4.7155556]
[1750048059346,5.74,156.68,156.67,4.85771717]
[1750048059508,12.03663029,156.71,156.68,0.14216157]
[1750048059711,12.03663029,156.71,156.69,4.7155556]
[1750048061105,12.03663029,156.71,156.68,0.14216157]
[1750048061298,12.03663029,156.71,156.69,4.7155556]
[1750048062507,12.03663029,156.71,156.7,4.7155556]
[1750048063432,4.7765526,156.73,156.7,4.7155556]
[1750048063636,5.7,156.75,156.72,4.7155556]
[1750048063809,5.7,156.75,156.71,4.7155556]
[1750048069419,5.7,156.75,156.72,4.7155556]
[1750048071130,5.7,156.75,156.71,4.7155556]
[1750048074418,5.7,156.75,156.72,4.7155556]
[1750048075147,5.7,156.75,156.73,4.7155556]
[1750048075324,5.7,156.75,156.7,6.52378049]
[1750048075522,5.7,156.75,156.73,4.7155556]
[1750048075933,10.7543556,156.81,156.74,4.7155556]
[1750048076222,32.0388,156.81,156.76,4.7155556]
[1750048076436,30.7155556,156.81,156.76,4.7155556]
[1750048077038,12.0389556,156.82,156.76,11.0947001]
[1750048077244,12.0389556,156.82,156.77,4.7155556]
[1750048077426,38.0389556,156.82,156.77,4.7155556]
[1750048077936,33.3234,156.82,156.77,4.7155556]
[1750048078133,38.0389556,156.82,156.77,4.7155556]
[1750048078550,4.7155556,156.81,156.76,4.7155556]
[1750048078928,38.0389556,156.82,156.76,4.7155556]
[1750048080344,33.3234,156.82,156.76,4.7155556]
[1750048080560,38.0389556,156.82,156.76,4.7155556]
[1750048081236,26.0,156.79,156.72,23.36520446]
[1750048081446,7.3234,156.82,156.75,4.7155556]
[1750048081654,4.7155556,156.8,156.75,4.7155556]
[1750048081834,4.7155556,156.8,156.73,18.64964886]
[1750048082046,4.7155556,156.8,156.75,4.7155556]
[1750048083933,26.0,156.79,156.75,4.7155556]
[1750048085169,4.7155556,156.81,156.75,4.7155556]
[1750048086376,4.7155556,156.78,156.69,32.38200657]
[1750048086543,4.7155556,156.78,156.72,4.7155556]
[1750048086544,4.7155556,156.77,156.72,4.7155556]
[1750048086877,30.7155556,156.78,156.72,4.7155556]
[1750048087446,4.7155556,156.77,156.72,4.7155556]
[1750048088852,30.7155556,156.78,156.72,4.7155556]
[1750048089666,4.7155556,156.77,156.72,4.7155556]
[1750048090372,26.0,156.78,156.71,0.14216157]
[1750048090545,12.0389556,156.82,156.76,4.7155556]
[1750048090753,7.3234,156.82,156.77,4.7155556]
[1750048091853,12.0389556,156.82,156.76,0.14216157]
[1750048092053,12.0389556,156.82,156.76,4.85771717]
[1750048092862,4.7155556,156.81,156.76,4.85771717]
[1750048093062,12.0389556,156.82,156.76,4.85771717]
[1750048094075,12.0389556,156.82,156.77,4.7155556]
[1750048095785,165.64964886,156.88,156.81,4.7155556]
[1750048095786,12.35620072,156.85,156.81,4.7155556]
[1750048096001,12.35620072,156.85,156.84,4.7155556]
[1750048096283,5.7,156.9,156.85,0.14216157]
[1750048096583,5.7,156.9,156.87,4.7155556]
[1750048099797,4.7155556,156.95,156.89,4.7155556]
[1750048100000,19.97653422,156.99,156.94,4.7155556]
[1750048100001,14.10175779,156.99,156.94,4.7155556]
[1750048100216,14.10175779,156.99,156.96,4.7155556]
[1750048100360,14.10175779,156.99,156.87,30.9755556]
[1750048100361,4.7155556,156.98,156.87,4.7155556]
[1750048100565,4.7155556,156.94,156.89,4.7155556]
[1750048100868,4.7155556,156.95,156.9,4.7155556]
[1750048101390,26.0,156.97,156.92,4.7155556]
[1750048101578,30.7155556,156.97,156.92,4.7155556]
[1750048102487,26.0,156.97,156.91,4.7155556]
[1750048102697,4.7155556,156.96,156.88,6.51641501]
[1750048102997,4.7155556,156.96,156.91,4.7155556]
[1750048103377,26.0,156.97,156.92,4.7155556]
[1750048103573,30.7155556,156.97,156.92,4.7155556]
[1750048105270,4.7155556,156.98,156.93,4.7155556]
[1750048105485,26.0,156.97,156.93,4.7155556]
[1750048109908,5.7,157.0,156.94,4.7155556]
[1750048110111,26.0,156.99,156.95,4.7155556]
[1750048110409,10.4155556,157.0,156.95,4.7155556]
[1750048110776,4.7155556,156.99,156.94,4.7155556]
[1750048110979,4.7155556,156.98,156.93,4.7155556]
[1750048111309,30.7155556,156.97,156.92,4.7155556]
[1750048112499,4.7155556,156.97,156.92,4.7155556]
[1750048112682,4.7155556,156.96,156.91,4.7155556]
[1750048113096,4.7155556,156.97,156.92,4.7155556]
[1750048114438,4.7155556,156.97,156.89,26.14216157]
[1750048114591,4.7155556,156.97,156.92,4.7155556]
[1750048114794,26.0,156.99,156.91,4.7155556]
[1750048114795,4.7155556,156.96,156.91,4.7155556]
[1750048115914,4.7155556,156.93,156.88,4.7155556]
[1750048117460,1.5634,156.97,156.87,0.14216157]
[1750048117746,26.0,156.92,156.87,4.7155556]
[1750048118243,30.7155556,156.92,156.87,4.7155556]
[1750048118924,4.7155556,156.91,156.87,4.7155556]
[1750048119721,4.7155556,156.91,156.86,0.14216157]
[1750048119904,4.7155556,156.91,156.87,4.7155556]
[1750048120309,4.7155556,156.91,156.86,4.85771717]
[1750048120508,4.7155556,156.88,156.84,63.39899927]
[1750048120903,4.7155556,156.85,156.84,63.39899927]
[1750048121423,4.7155556,156.85,156.8,93.9155556]
[1750048121632,4.7155556,156.84,156.8,4.7155556]
[1750048123835,26.0,156.88,156.81,4.7155556]
[1750048124024,4.7155556,156.86,156.81,4.7155556]
[1750048126030,4.7155556,156.86,156.8,0.14216157]
[1750048126218,4.7155556,156.85,156.8,4.85771717]
[1750048127108,32.5231,156.88,156.81,4.7155556]
[1750048127313,4.7155556,156.86,156.81,4.7155556]
[1750048127526,4.7155556,156.85,156.8,0.14216157]
[1750048127717,26.0,156.88,156.81,4.7155556]
[1750048127917,26.0,156.86,156.82,4.7155556]
[1750048128619,26.0,156.86,156.83,4.7155556]
[1750048129220,30.7155556,156.86,156.81,4.7155556]
[1750048129423,30.7155556,156.85,156.8,4.7155556]
[1750048129837,30.7155556,156.85,156.78,18.79181043]
[1750048130045,30.7155556,156.85,156.79,4.7155556]
[1750048130343,30.7155556,156.85,156.8,4.7155556]
[1750048131835,30.7155556,156.85,156.78,51.43015671]
[1750048132052,30.7155556,156.85,156.79,4.7155556]
[1750048132422,26.0,156.85,156.79,4.7155556]
[1750048132625,26.0,156.85,156.8,4.7155556]
[1750048132828,30.7155556,156.85,156.8,4.7155556]
[1750048140556,26.0,156.85,156.8,4.7155556]
[1750048140762,4.7155556,156.87,156.82,4.7155556]
[1750048141138,4.7155556,156.87,156.8,6.37752993]
[1750048141139,4.7155556,156.88,156.83,4.7155556]
[1750048141458,4.7155556,156.87,156.81,0.14216157]
[1750048141660,4.7155556,156.87,156.82,4.7155556]
[1750048142943,4.7155556,156.87,156.79,25.02754482]
[1750048143166,26.0,156.88,156.81,4.7155556]
[1750048143167,4.7155556,156.86,156.81,4.7155556]
[1750048143456,4.7155556,156.87,156.82,4.7155556]
[1750048145542,4.7155556,156.86,156.82,4.7155556]
[1750048145740,4.7155556,156.86,156.8,0.14216157]
[1750048145947,4.7155556,156.87,156.82,4.7155556]
[1750048146667,26.0,156.88,156.82,4.7155556]
[1750048146853,4.7155556,156.86,156.82,4.7155556]
[1750048149673,4.7155556,156.87,156.82,4.7155556]
[1750048152673,26.0,156.88,156.85,4.7155556]
[1750048153052,5.7,156.89,156.85,4.7155556]
[1750048153253,31.7,156.89,156.85,4.7155556]
[1750048153455,5.7,156.89,156.85,4.7155556]
[1750048154556,10.4155556,156.89,156.85,4.7155556]
[1750048155359,5.7,156.89,156.85,4.7155556]
[1750048155882,10.4155556,156.89,156.82,6.51873702]
[1750048156177,10.4155556,156.89,156.84,4.7155556]
[1750048156595,5.7,156.89,156.85,4.7155556]
[1750048156887,10.4155556,156.89,156.85,4.7155556]
[1750048157058,10.4155556,156.89,156.84,4.7155556]
[1750048157864,4.7155556,156.86,156.81,0.14216157]
[1750048158070,26.0,156.88,156.8,30.9555556]
[1750048158071,4.7155556,156.85,156.8,30.9555556]
[1750048158263,4.7155556,156.86,156.81,4.7155556]
[1750048159284,4.7155556,156.86,156.78,25.02796019]
[1750048159285,30.7155556,156.86,156.78,25.02796019]
[1750048159495,4.7155556,156.85,156.8,4.7155556]
[1750048160792,26.0,156.86,156.79,0.14216157]
[1750048160793,30.7155556,156.86,156.81,4.7155556]
[1750048161204,30.7155556,156.86,156.79,6.52007101]
[1750048161205,36.4155556,156.89,156.84,4.7155556]
[1750048161368,5.7,156.89,156.85,4.7155556]
[1750048163195,5.7,156.89,156.87,4.7155556]
[1750048164265,5.7,156.89,156.86,4.7155556]
[1750048165173,5.7,156.89,156.87,4.7155556]
[1750048166070,4.7582903,156.91,156.87,4.7155556]
[1750048166268,9.4738459,156.92,156.87,4.7155556]
[1750048166468,4.7155556,156.92,156.87,4.7155556]
[1750048166670,30.7582903,156.93,156.89,4.7155556]
[1750048166888,4.7582903,156.93,156.89,4.7155556]
[1750048167070,9.4738459,156.93,156.88,4.7155556]
[1750048167271,4.7582903,156.93,156.89,4.7155556]
[1750048167563,37.0833459,156.94,156.89,4.7155556]
[1750048167765,32.3677903,156.94,156.89,4.7155556]
[1750048168264,6.3677903,156.94,156.89,4.7155556]
[1750048168679,1.6095,156.94,156.89,4.7155556]
[1750048168888,1.6095,156.94,156.91,4.7155556]
[1750048169205,5.7,156.95,156.92,4.7155556]
[1750048169404,5.7,156.95,156.94,4.7155556]
[1750048171911,5.7,156.95,156.92,4.7155556]
[1750048172071,10.4155556,156.95,156.89,26.24]
[1750048172397,4.7155556,156.94,156.89,4.7155556]
[1750048172570,10.4155556,156.95,156.9,4.7155556]
[1750048173984,5.7,156.95,156.9,4.7155556]
[1750048174184,10.4155556,156.95,156.9,4.7155556]
[1750048174398,5.7,156.95,156.91,4.7155556]
[1750048174766,10.4155556,156.95,156.9,4.7155556]
[1750048176889,5.7,156.95,156.9,4.7155556]
[1750048177703,5.7,156.95,156.91,4.7155556]
[1750048177907,10.4155556,156.95,156.9,4.7155556]
[1750048180007,5.7,156.95,156.9,4.7155556]
[1750048180306,10.4155556,156.95,156.9,4.7155556]
[1750048180706,4.7155556,156.94,156.88,4.7155556]
[1750048181003,4.7155556,156.94,156.86,4.7155556]
[1750048181004,4.7155556,156.91,156.86,4.7155556]
[1750048181303,4.7155556,156.92,156.87,4.7155556]
[1750048182803,4.7155556,156.93,156.88,4.7155556]
[1750048183921,4.7155556,156.92,156.87,4.7155556]
[1750048184511,4.7155556,156.92,156.86,0.14216157]
[1750048184710,4.7155556,156.92,156.87,4.7155556]
[1750048187009,4.7155556,156.92,156.88,4.7155556]
[1750048187905,4.7155556,156.92,156.87,4.7155556]
[1750048190222,4.7155556,156.93,156.88,4.7155556]
[1750048193104,26.0,156.94,156.88,4.7155556]
[1750048193309,4.7155556,156.93,156.88,4.7155556]
[1750048194234,4.7155556,156.92,156.87,4.7155556]
[1750048195220,4.7155556,156.91,156.85,0.14216157]
[1750048195423,4.7155556,156.91,156.86,4.7155556]
[1750048196126,4.7155556,156.9,156.86,4.7155556]
[1750048196839,4.7155556,156.89,156.84,89.2]
[1750048197021,4.7155556,156.9,156.85,4.7155556]
[1750048198322,30.7155556,156.91,156.86,4.7155556]
[1750048199033,30.7155556,156.91,156.84,6.37586913]
[1750048199229,30.7155556,156.91,156.86,4.7155556]
[1750048200550,4.7155556,156.9,156.86,4.7155556]
[1750048200844,4.75994661,156.94,156.89,4.7155556]
[1750048201057,7.2041,156.95,156.91,4.7155556]
[1750048201216,11.9196556,156.95,156.9,4.7155556]
[1750048201417,33.2041,156.95,156.91,4.7155556]
[1750048201637,33.2041,156.95,156.93,4.7155556]
[1750048201638,5.7,156.95,156.93,4.7155556]
[1750048201817,5.7,156.95,156.94,4.7155556]
[1750048202417,6.29654661,157.0,156.94,4.7155556]
[1750048202625,1.5366,157.0,156.97,4.7155556]
[1750048203140,4.75994661,156.99,156.92,4.7155556]
[1750048203318,7.77085641,157.0,156.93,4.7155556]
[1750048203319,4.7155556,156.98,156.93,4.7155556]
[1750048203642,26.0,156.97,156.93,4.7155556]
[1750048204140,26.0,156.97,156.94,4.7155556]
[1750048204328,4.7155556,156.99,156.94,4.7155556]
[1750048204528,30.7155556,156.99,156.94,4.7155556]
[1750048204932,30.7155556,156.99,156.9,6.51564538]
[1750048204933,4.7155556,156.98,156.93,4.7155556]
[1750048205242,4.7155556,156.97,156.92,4.7155556]
[1750048205445,4.7155556,156.98,156.93,4.7155556]
[1750048207049,4.7155556,156.97,156.92,4.7155556]
[1750048208358,26.0,156.99,156.92,4.7155556]
[1750048208642,4.7155556,156.97,156.92,4.7155556]
[1750048210734,4.7155556,156.97,156.92,11.08821763]
[1750048211625,4.7155556,156.97,156.91,6.37293202]
[1750048212027,4.7155556,156.97,156.92,4.7155556]
[1750048212546,30.7155556,156.96,156.9,32.73562237]
[1750048212747,30.7155556,156.96,156.91,4.7155556]
[1750048213950,26.0,156.96,156.92,4.7155556]
[1750048214630,4.7155556,156.97,156.92,4.7155556]
[1750048216325,30.7155556,156.97,156.92,4.7155556]
[1750048221247,26.0,156.97,156.92,4.7155556]
[1750048221460,30.7155556,156.97,156.92,4.7155556]
[1750048222062,26.0,156.97,156.93,4.7155556]
[1750048222571,30.7155556,156.94,156.87,6.0762]
[1750048222770,4.7155556,156.89,156.84,4.7155556]
[1750048222946,4.7155556,156.89,156.83,40.44877704]
[1750048223147,4.7155556,156.89,156.86,6.373029]
[1750048223347,4.7155556,156.9,156.84,4.7155556]
[1750048223569,4.7155556,156.89,156.84,4.7155556]
[1750048224236,4.7155556,156.92,156.84,32.37579754]
[1750048224435,30.7155556,156.95,156.9,4.7155556]
[1750048224663,4.75994661,156.96,156.88,30.9355556]
[1750048224664,4.7155556,156.94,156.88,30.9355556]
[1750048224861,4.7155556,156.91,156.86,26.22]
[1750048225069,4.7155556,156.92,156.86,30.9355556]
[1750048225249,4.7155556,156.92,156.87,4.7155556]
[1750048225648,30.7155556,156.93,156.87,4.7155556]
[1750048226042,4.7155556,156.92,156.86,30.9355556]
[1750048226243,4.7155556,156.92,156.86,37.31066145]
[1750048226663,4.7155556,156.92,156.87,4.7155556]
[1750048228157,30.7155556,156.93,156.88,4.7155556]
[1750048228369,26.0,156.94,156.89,4.7155556]
[1750048228561,4.7155556,156.93,156.88,4.7155556]
[1750048228868,4.75994661,156.96,156.88,4.7155556]
[1750048228869,4.75994661,156.96,156.9,18.79181043]
[1750048229172,4.7155556,156.98,156.92,4.7155556]
[1750048229366,4.7155556,156.95,156.91,26.22]
[1750048229577,4.7155556,156.92,156.88,26.22]
[1750048229942,4.7155556,156.93,156.88,26.22]
[1750048230365,4.7155556,156.93,156.88,30.9355556]
[1750048230778,4.7155556,156.93,156.88,4.7155556]
[1750048230959,30.7155556,156.94,156.88,30.9355556]
[1750048231164,26.0,156.94,156.88,26.22]
[1750048231356,30.7155556,156.94,156.88,30.9355556]
[1750048232279,30.7155556,156.94,156.88,37.3097256]
[1750048233155,4.7155556,156.93,156.88,37.3097256]
[1750048235081,26.0,156.89,156.83,89.2]
[1750048235280,4.7155556,156.87,156.83,26.22]
[1750048235455,4.7155556,156.87,156.82,30.9355556]
[1750048235949,4.7155556,156.88,156.82,26.22]
[1750048236156,4.7155556,156.88,156.83,4.7155556]
[1750048236356,30.7155556,156.89,156.84,4.7155556]
[1750048237377,4.7155556,156.92,156.87,4.7155556]
[1750048237756,1.5595,156.93,156.83,32.59622911]
[1750048237962,4.7155556,156.9,156.84,4.7155556]
[1750048238577,30.7155556,156.91,156.86,4.7155556]
[1750048238758,26.0,156.91,156.88,4.7155556]
[1750048239079,6.2750556,156.93,156.88,4.7155556]
[1750048240356,1.5595,156.93,156.88,4.7155556]
[1750048240557,1.5595,156.93,156.87,32.59455571]
[1750048240558,35.47550221,156.94,156.89,4.7155556]
[1750048240756,4.75994661,156.94,156.9,4.7155556]
[1750048240986,5.68,156.95,156.91,4.7155556]
[1750048241159,11.05410221,156.97,156.92,4.7155556]
[1750048241364,6.2941556,156.97,156.92,4.7155556]
[1750048241661,6.2941556,156.97,156.91,4.7155556]
[1750048242183,5.68,156.98,156.91,26.22]
[1750048242383,5.68,156.98,156.93,4.7155556]